Department family,Entity,Date,Expense Type,Expense area,Supplier,Transaction number, AP Amount (�) 
Department of Health,NHS Barnsley CCG,31/07/2016,Cont Care-Learning Disab(<65),CHC ADULT FULLY FUNDED,ASC HEALTHCARE LTD,13349091," 74,331.30 "
Department of Health,NHS Barnsley CCG,31/07/2016,Cont Care-Learning Disab(<65),CHC ADULT FULLY FUNDED,ASC HEALTHCARE LTD,13634282," 76,809.01 "
Department of Health,NHS Barnsley CCG,31/07/2016,C&M-GMS Global Sum,PRC DELEGATED CO-COMMISSIONING,BARNSLEY GP PRACTICE,13560194," 51,329.68 "
Department of Health,NHS Barnsley CCG,31/07/2016,C&M-GMS Prem Healthcentre Rent,PRC DELEGATED CO-COMMISSIONING,BARNSLEY GP PRACTICE,13560194," 17,137.00 "
Department of Health,NHS Barnsley CCG,31/07/2016,C&M-GMS QOF Aspiration,PRC DELEGATED CO-COMMISSIONING,BARNSLEY GP PRACTICE,13560194," 4,803.65 "
Department of Health,NHS Barnsley CCG,31/07/2016,C&M-PMS Contract Value,PRC DELEGATED CO-COMMISSIONING,BARNSLEY GP PRACTICE,13403677,"-42,006.75 "
Department of Health,NHS Barnsley CCG,31/07/2016,C&M-PMS GP Statutory Levy,PRC DELEGATED CO-COMMISSIONING,BARNSLEY GP PRACTICE,13403677,-206.43 
Department of Health,NHS Barnsley CCG,31/07/2016,C&M-PMS Out of Hours Opt Outs,PRC DELEGATED CO-COMMISSIONING,BARNSLEY GP PRACTICE,13403677,-37.34 
Department of Health,NHS Barnsley CCG,31/07/2016,C&M-PMS Voluntary Levy,PRC DELEGATED CO-COMMISSIONING,BARNSLEY GP PRACTICE,13403677,-36.13 
Department of Health,NHS Barnsley CCG,31/07/2016,C&M-PMS Contract Value,PRC DELEGATED CO-COMMISSIONING,BARNSLEY GP PRACTICE,13403678," 88,321.86 "
Department of Health,NHS Barnsley CCG,31/07/2016,C&M-PMS Out of Hours Opt Outs,PRC DELEGATED CO-COMMISSIONING,BARNSLEY GP PRACTICE,13403678,"-2,252.58 "
Department of Health,NHS Barnsley CCG,31/07/2016,C&M-PMS Prem Notional Rent,PRC DELEGATED CO-COMMISSIONING,BARNSLEY GP PRACTICE,13403678," 28,675.00 "
Department of Health,NHS Barnsley CCG,31/07/2016,C&M-PMS QOF Aspiration,PRC DELEGATED CO-COMMISSIONING,BARNSLEY GP PRACTICE,13403678," 4,886.06 "
Department of Health,NHS Barnsley CCG,31/07/2016,C&M-PMS Contract Value,PRC DELEGATED CO-COMMISSIONING,BARNSLEY GP PRACTICE,13403232,"-78,377.69 "
Department of Health,NHS Barnsley CCG,31/07/2016,C&M-PMS GP Statutory Levy,PRC DELEGATED CO-COMMISSIONING,BARNSLEY GP PRACTICE,13403232,-367.63 
Department of Health,NHS Barnsley CCG,31/07/2016,C&M-PMS Out of Hours Opt Outs,PRC DELEGATED CO-COMMISSIONING,BARNSLEY GP PRACTICE,13403232,-64.54 
Department of Health,NHS Barnsley CCG,31/07/2016,C&M-PMS Voluntary Levy,PRC DELEGATED CO-COMMISSIONING,BARNSLEY GP PRACTICE,13403232,-64.34 
Department of Health,NHS Barnsley CCG,31/07/2016,ME-PMS GP Pension EEs-PMS,PRC DELEGATED CO-COMMISSIONING,BARNSLEY GP PRACTICE,13403232,"-10,042.08 "
Department of Health,NHS Barnsley CCG,31/07/2016,ME-PMS GP Pension ERs Adjs - PMS,PRC DELEGATED CO-COMMISSIONING,BARNSLEY GP PRACTICE,13403232,"-10,164.92 "
Department of Health,NHS Barnsley CCG,31/07/2016,C&M-APMS Prem Rates,PRC DELEGATED CO-COMMISSIONING,BARNSLEY GP PRACTICE,13420146," 1,080.93 "
Department of Health,NHS Barnsley CCG,31/07/2016,C&M-PMS Contract Value,PRC DELEGATED CO-COMMISSIONING,BARNSLEY GP PRACTICE,13420146," 166,813.48 "
Department of Health,NHS Barnsley CCG,31/07/2016,C&M-PMS DES Minor Surgery,PRC DELEGATED CO-COMMISSIONING,BARNSLEY GP PRACTICE,13420146," 2,045.76 "
Department of Health,NHS Barnsley CCG,31/07/2016,C&M-PMS Out of Hours Opt Outs,PRC DELEGATED CO-COMMISSIONING,BARNSLEY GP PRACTICE,13420146,"-4,399.77 "
Department of Health,NHS Barnsley CCG,31/07/2016,C&M-PMS Prem Healthcentre Rent,PRC DELEGATED CO-COMMISSIONING,BARNSLEY GP PRACTICE,13420146," 25,980.81 "
Department of Health,NHS Barnsley CCG,31/07/2016,C&M-PMS Prem Notional Rent,PRC DELEGATED CO-COMMISSIONING,BARNSLEY GP PRACTICE,13420146," 1,833.33 "
Department of Health,NHS Barnsley CCG,31/07/2016,C&M-PMS Prem Water Rates,PRC DELEGATED CO-COMMISSIONING,BARNSLEY GP PRACTICE,13420146, 179.36 
Department of Health,NHS Barnsley CCG,31/07/2016,C&M-PMS QOF Aspiration,PRC DELEGATED CO-COMMISSIONING,BARNSLEY GP PRACTICE,13420146," 9,268.60 "
Department of Health,NHS Barnsley CCG,31/07/2016,C&M-PMS Contract Value,PRC DELEGATED CO-COMMISSIONING,BARNSLEY GP PRACTICE,13403234," 28,670.29 "
Department of Health,NHS Barnsley CCG,31/07/2016,C&M-PMS DES Minor Surgery,PRC DELEGATED CO-COMMISSIONING,BARNSLEY GP PRACTICE,13403234, 468.82 
Department of Health,NHS Barnsley CCG,31/07/2016,C&M-PMS Out of Hours Opt Outs,PRC DELEGATED CO-COMMISSIONING,BARNSLEY GP PRACTICE,13403234,-757.25 
Department of Health,NHS Barnsley CCG,31/07/2016,C&M-PMS Prem Actual Rent,PRC DELEGATED CO-COMMISSIONING,BARNSLEY GP PRACTICE,13403234, 674.50 
Department of Health,NHS Barnsley CCG,31/07/2016,C&M-PMS QOF Aspiration,PRC DELEGATED CO-COMMISSIONING,BARNSLEY GP PRACTICE,13403234," 1,375.99 "
Department of Health,NHS Barnsley CCG,31/07/2016,C&M-PMS Contract Value,PRC DELEGATED CO-COMMISSIONING,BARNSLEY GP PRACTICE,13403235,"-42,224.08 "
Department of Health,NHS Barnsley CCG,31/07/2016,C&M-PMS GP Statutory Levy,PRC DELEGATED CO-COMMISSIONING,BARNSLEY GP PRACTICE,13403235,-220.37 
Department of Health,NHS Barnsley CCG,31/07/2016,C&M-PMS Out of Hours Opt Outs,PRC DELEGATED CO-COMMISSIONING,BARNSLEY GP PRACTICE,13403235,-39.83 
Department of Health,NHS Barnsley CCG,31/07/2016,C&M-PMS Voluntary Levy,PRC DELEGATED CO-COMMISSIONING,BARNSLEY GP PRACTICE,13403235,-38.56 
Department of Health,NHS Barnsley CCG,31/07/2016,ME-PMS GP Pension EEs-PMS,PRC DELEGATED CO-COMMISSIONING,BARNSLEY GP PRACTICE,13403235,"-3,522.50 "
Department of Health,NHS Barnsley CCG,31/07/2016,ME-PMS GP Pension ERs Adjs - PMS,PRC DELEGATED CO-COMMISSIONING,BARNSLEY GP PRACTICE,13403235,"-3,598.83 "
Department of Health,NHS Barnsley CCG,31/07/2016,C&M-PMS Contract Value,PRC DELEGATED CO-COMMISSIONING,BARNSLEY GP PRACTICE,13403236," 90,178.54 "
Department of Health,NHS Barnsley CCG,31/07/2016,C&M-PMS Out of Hours Opt Outs,PRC DELEGATED CO-COMMISSIONING,BARNSLEY GP PRACTICE,13403236,"-2,381.67 "
Department of Health,NHS Barnsley CCG,31/07/2016,C&M-PMS Prem Healthcentre Rent,PRC DELEGATED CO-COMMISSIONING,BARNSLEY GP PRACTICE,13403236," 23,423.53 "
Department of Health,NHS Barnsley CCG,31/07/2016,C&M-PMS QOF Aspiration,PRC DELEGATED CO-COMMISSIONING,BARNSLEY GP PRACTICE,13403236," 4,879.28 "
Department of Health,NHS Barnsley CCG,31/07/2016,C&M-GMS Global Sum,PRC DELEGATED CO-COMMISSIONING,BARNSLEY GP PRACTICE,13560196," 66,710.99 "
Department of Health,NHS Barnsley CCG,31/07/2016,C&M-GMS Prem Notional Rent,PRC DELEGATED CO-COMMISSIONING,BARNSLEY GP PRACTICE,13560196," 4,483.33 "
Department of Health,NHS Barnsley CCG,31/07/2016,C&M-GMS Prem Rates,PRC DELEGATED CO-COMMISSIONING,BARNSLEY GP PRACTICE,13560196," 1,751.93 "
Department of Health,NHS Barnsley CCG,31/07/2016,C&M-GMS QOF Aspiration,PRC DELEGATED CO-COMMISSIONING,BARNSLEY GP PRACTICE,13560196," 8,046.05 "
Department of Health,NHS Barnsley CCG,31/07/2016,C&M-GMS Global Sum,PRC DELEGATED CO-COMMISSIONING,BARNSLEY GP PRACTICE,13560198," 61,765.41 "
Department of Health,NHS Barnsley CCG,31/07/2016,C&M-GMS Prem Actual Rent,PRC DELEGATED CO-COMMISSIONING,BARNSLEY GP PRACTICE,13560198," 56,875.00 "
Department of Health,NHS Barnsley CCG,31/07/2016,C&M-GMS Prem Healthcentre Rent,PRC DELEGATED CO-COMMISSIONING,BARNSLEY GP PRACTICE,13560198," 3,574.37 "
Department of Health,NHS Barnsley CCG,31/07/2016,C&M-GMS Prem Rates,PRC DELEGATED CO-COMMISSIONING,BARNSLEY GP PRACTICE,13560198, 677.60 
Department of Health,NHS Barnsley CCG,31/07/2016,C&M-GMS QOF Aspiration,PRC DELEGATED CO-COMMISSIONING,BARNSLEY GP PRACTICE,13560198," 6,884.36 "
Department of Health,NHS Barnsley CCG,31/07/2016,C&M-PMS Contract Value,PRC DELEGATED CO-COMMISSIONING,BARNSLEY GP PRACTICE,13403239,"-108,446.66 "
Department of Health,NHS Barnsley CCG,31/07/2016,C&M-PMS GP Statutory Levy,PRC DELEGATED CO-COMMISSIONING,BARNSLEY GP PRACTICE,13403239,-555.43 
Department of Health,NHS Barnsley CCG,31/07/2016,C&M-PMS Out of Hours Opt Outs,PRC DELEGATED CO-COMMISSIONING,BARNSLEY GP PRACTICE,13403239,-120.03 
Department of Health,NHS Barnsley CCG,31/07/2016,C&M-PMS Voluntary Levy,PRC DELEGATED CO-COMMISSIONING,BARNSLEY GP PRACTICE,13403239,-97.20 
Department of Health,NHS Barnsley CCG,31/07/2016,ME - PMS TPS Added Years Adj EEs,PRC DELEGATED CO-COMMISSIONING,BARNSLEY GP PRACTICE,13403239,-610.96 
Department of Health,NHS Barnsley CCG,31/07/2016,ME-PMS GP Pension EEs-PMS,PRC DELEGATED CO-COMMISSIONING,BARNSLEY GP PRACTICE,13403239,"-13,675.09 "
Department of Health,NHS Barnsley CCG,31/07/2016,ME-PMS GP Pension ERs Adjs - PMS,PRC DELEGATED CO-COMMISSIONING,BARNSLEY GP PRACTICE,13403239,"-14,201.82 "
Department of Health,NHS Barnsley CCG,31/07/2016,C&M-APMS Prem Rates,PRC DELEGATED CO-COMMISSIONING,BARNSLEY GP PRACTICE,13403240," 3,043.55 "
Department of Health,NHS Barnsley CCG,31/07/2016,C&M-PMS Baseline Adjustment,PRC DELEGATED CO-COMMISSIONING,BARNSLEY GP PRACTICE,13403240, 188.08 
Department of Health,NHS Barnsley CCG,31/07/2016,C&M-PMS Contract Value,PRC DELEGATED CO-COMMISSIONING,BARNSLEY GP PRACTICE,13403240," 228,194.83 "
Department of Health,NHS Barnsley CCG,31/07/2016,C&M-PMS DES Minor Surgery,PRC DELEGATED CO-COMMISSIONING,BARNSLEY GP PRACTICE,13403240," 21,565.72 "
Department of Health,NHS Barnsley CCG,31/07/2016,C&M-PMS Dispensing Quality Sch,PRC DELEGATED CO-COMMISSIONING,BARNSLEY GP PRACTICE,13403240," 19,339.68 "
Department of Health,NHS Barnsley CCG,31/07/2016,C&M-PMS Out of Hours Opt Outs,PRC DELEGATED CO-COMMISSIONING,BARNSLEY GP PRACTICE,13403240,"-5,758.92 "
Department of Health,NHS Barnsley CCG,31/07/2016,C&M-PMS Prem Actual Rent,PRC DELEGATED CO-COMMISSIONING,BARNSLEY GP PRACTICE,13403240," 24,600.00 "
Department of Health,NHS Barnsley CCG,31/07/2016,C&M-PMS Prem Notional Rent,PRC DELEGATED CO-COMMISSIONING,BARNSLEY GP PRACTICE,13403240," 6,333.33 "
Department of Health,NHS Barnsley CCG,31/07/2016,C&M-PMS QOF Aspiration,PRC DELEGATED CO-COMMISSIONING,BARNSLEY GP PRACTICE,13403240," 13,009.21 "
Department of Health,NHS Barnsley CCG,31/07/2016,C&M-PMS Cost of Drugs -Dispensing,LOCAL ENHANCED SERVICES,BARNSLEY GP PRACTICE,13560248,"-81,639.66 "
Department of Health,NHS Barnsley CCG,31/07/2016,C&M-PMS Prsc Chrgs Cll&Rmttd by GPs,PRC DELEGATED CO-COMMISSIONING,BARNSLEY GP PRACTICE,13560248,"-5,107.20 "
Department of Health,NHS Barnsley CCG,31/07/2016,C&M-PMS Cost of Drugs -Dispensing,LOCAL ENHANCED SERVICES,BARNSLEY GP PRACTICE,13560249," 154,124.70 "
Department of Health,NHS Barnsley CCG,31/07/2016,C&M-PMS Prof fees Dispensing,PRC DELEGATED CO-COMMISSIONING,BARNSLEY GP PRACTICE,13560249," 25,294.45 "
Department of Health,NHS Barnsley CCG,31/07/2016,C&M-PMS Prsc Chrgs Cll&Rmttd by GPs,LOCAL ENHANCED SERVICES,BARNSLEY GP PRACTICE,13560249," 5,107.20 "
Department of Health,NHS Barnsley CCG,31/07/2016,C&M-GMS Global Sum,PRC DELEGATED CO-COMMISSIONING,BARNSLEY GP PRACTICE,13560200," 36,834.30 "
Department of Health,NHS Barnsley CCG,31/07/2016,C&M-GMS Prem Actual Rent,PRC DELEGATED CO-COMMISSIONING,BARNSLEY GP PRACTICE,13560200," 9,212.50 "
Department of Health,NHS Barnsley CCG,31/07/2016,C&M-GMS Prem Notional Rent,PRC DELEGATED CO-COMMISSIONING,BARNSLEY GP PRACTICE,13560200," 1,416.67 "
Department of Health,NHS Barnsley CCG,31/07/2016,C&M-GMS Prem Rates,PRC DELEGATED CO-COMMISSIONING,BARNSLEY GP PRACTICE,13560200," 1,042.62 "
Department of Health,NHS Barnsley CCG,31/07/2016,C&M-GMS QOF Aspiration,PRC DELEGATED CO-COMMISSIONING,BARNSLEY GP PRACTICE,13560200," 3,898.31 "
Department of Health,NHS Barnsley CCG,31/07/2016,C&M-PMS Contract Value,PRC DELEGATED CO-COMMISSIONING,BARNSLEY GP PRACTICE,13403237,"-39,609.32 "
Department of Health,NHS Barnsley CCG,31/07/2016,C&M-PMS GP Statutory Levy,PRC DELEGATED CO-COMMISSIONING,BARNSLEY GP PRACTICE,13403237,-159.30 
Department of Health,NHS Barnsley CCG,31/07/2016,C&M-PMS Out of Hours Opt Outs,PRC DELEGATED CO-COMMISSIONING,BARNSLEY GP PRACTICE,13403237,-26.54 
Department of Health,NHS Barnsley CCG,31/07/2016,C&M-PMS Prem Healthcentre Rent,PRC DELEGATED CO-COMMISSIONING,BARNSLEY GP PRACTICE,13403237,-0.65 
Department of Health,NHS Barnsley CCG,31/07/2016,C&M-PMS Voluntary Levy,PRC DELEGATED CO-COMMISSIONING,BARNSLEY GP PRACTICE,13403237,-27.88 
Department of Health,NHS Barnsley CCG,31/07/2016,ME-PMS GP Pension EEs-PMS,PRC DELEGATED CO-COMMISSIONING,BARNSLEY GP PRACTICE,13403237,"-1,350.92 "
Department of Health,NHS Barnsley CCG,31/07/2016,ME-PMS GP Pension ERs Adjs - PMS,PRC DELEGATED CO-COMMISSIONING,BARNSLEY GP PRACTICE,13403237,"-1,332.28 "
Department of Health,NHS Barnsley CCG,31/07/2016,C&M-APMS Prem Rates,PRC DELEGATED CO-COMMISSIONING,BARNSLEY GP PRACTICE,13403238," 2,414.28 "
Department of Health,NHS Barnsley CCG,31/07/2016,C&M-PMS Baseline Adjustment,PRC DELEGATED CO-COMMISSIONING,BARNSLEY GP PRACTICE,13403238," 5,074.17 "
Department of Health,NHS Barnsley CCG,31/07/2016,C&M-PMS Contract Value,PRC DELEGATED CO-COMMISSIONING,BARNSLEY GP PRACTICE,13403238," 77,135.54 "
Department of Health,NHS Barnsley CCG,31/07/2016,C&M-PMS DES Minor Surgery,PRC DELEGATED CO-COMMISSIONING,BARNSLEY GP PRACTICE,13403238, 596.68 
Department of Health,NHS Barnsley CCG,31/07/2016,C&M-PMS Out of Hours Opt Outs,PRC DELEGATED CO-COMMISSIONING,BARNSLEY GP PRACTICE,13403238,"-1,809.29 "
Department of Health,NHS Barnsley CCG,31/07/2016,C&M-PMS Prem Healthcentre Rent,PRC DELEGATED CO-COMMISSIONING,BARNSLEY GP PRACTICE,13403238," 2,989.68 "
Department of Health,NHS Barnsley CCG,31/07/2016,C&M-PMS Prem Notional Rent,PRC DELEGATED CO-COMMISSIONING,BARNSLEY GP PRACTICE,13403238," 7,833.33 "
Department of Health,NHS Barnsley CCG,31/07/2016,C&M-PMS Prem Water Rates,PRC DELEGATED CO-COMMISSIONING,BARNSLEY GP PRACTICE,13403238, 363.73 
Department of Health,NHS Barnsley CCG,31/07/2016,C&M-PMS QOF Aspiration,PRC DELEGATED CO-COMMISSIONING,BARNSLEY GP PRACTICE,13403238," 2,466.00 "
Department of Health,NHS Barnsley CCG,31/07/2016,C&M-GMS Global Sum,PRC DELEGATED CO-COMMISSIONING,BARNSLEY GP PRACTICE,13560203," 94,883.69 "
Department of Health,NHS Barnsley CCG,31/07/2016,C&M-GMS Prem Notional Rent,PRC DELEGATED CO-COMMISSIONING,BARNSLEY GP PRACTICE,13560203," 6,208.33 "
Department of Health,NHS Barnsley CCG,31/07/2016,C&M-GMS Prem Rates,PRC DELEGATED CO-COMMISSIONING,BARNSLEY GP PRACTICE,13560203," 2,204.00 "
Department of Health,NHS Barnsley CCG,31/07/2016,C&M-GMS QOF Aspiration,PRC DELEGATED CO-COMMISSIONING,BARNSLEY GP PRACTICE,13560203," 10,127.48 "
Department of Health,NHS Barnsley CCG,31/07/2016,C&M-PMS Contract Value,PRC DELEGATED CO-COMMISSIONING,BARNSLEY GP PRACTICE,13403241,"-82,588.65 "
Department of Health,NHS Barnsley CCG,31/07/2016,C&M-PMS GP Statutory Levy,PRC DELEGATED CO-COMMISSIONING,BARNSLEY GP PRACTICE,13403241,-399.77 
Department of Health,NHS Barnsley CCG,31/07/2016,C&M-PMS Out of Hours Opt Outs,PRC DELEGATED CO-COMMISSIONING,BARNSLEY GP PRACTICE,13403241,-68.06 
Department of Health,NHS Barnsley CCG,31/07/2016,C&M-PMS Voluntary Levy,PRC DELEGATED CO-COMMISSIONING,BARNSLEY GP PRACTICE,13403241,-69.96 
Department of Health,NHS Barnsley CCG,31/07/2016,ME - PMS TPS Added Years Adj EEs,PRC DELEGATED CO-COMMISSIONING,BARNSLEY GP PRACTICE,13403241,-585.27 
Department of Health,NHS Barnsley CCG,31/07/2016,ME-PMS GP Pension EEs-PMS,PRC DELEGATED CO-COMMISSIONING,BARNSLEY GP PRACTICE,13403241,"-9,199.44 "
Department of Health,NHS Barnsley CCG,31/07/2016,ME-PMS GP Pension ERs Adjs - PMS,PRC DELEGATED CO-COMMISSIONING,BARNSLEY GP PRACTICE,13403241,"-9,496.74 "
Department of Health,NHS Barnsley CCG,31/07/2016,C&M-APMS Prem Rates,PRC DELEGATED CO-COMMISSIONING,BARNSLEY GP PRACTICE,13403242, 520.30 
Department of Health,NHS Barnsley CCG,31/07/2016,C&M-PMS Contract Value,PRC DELEGATED CO-COMMISSIONING,BARNSLEY GP PRACTICE,13403242," 175,843.64 "
Department of Health,NHS Barnsley CCG,31/07/2016,C&M-PMS Out of Hours Opt Outs,PRC DELEGATED CO-COMMISSIONING,BARNSLEY GP PRACTICE,13403242,"-4,639.35 "
Department of Health,NHS Barnsley CCG,31/07/2016,C&M-PMS Prem Notional Rent,PRC DELEGATED CO-COMMISSIONING,BARNSLEY GP PRACTICE,13403242," 13,500.00 "
Department of Health,NHS Barnsley CCG,31/07/2016,C&M-PMS QOF Aspiration,PRC DELEGATED CO-COMMISSIONING,BARNSLEY GP PRACTICE,13403242," 9,037.78 "
Department of Health,NHS Barnsley CCG,31/07/2016,C&M-GMS Global Sum,PRC DELEGATED CO-COMMISSIONING,BARNSLEY GP PRACTICE,13583028," 86,227.43 "
Department of Health,NHS Barnsley CCG,31/07/2016,C&M-GMS PCO Locum Adop/Pat/Mat,PRC DELEGATED CO-COMMISSIONING,BARNSLEY GP PRACTICE,13583028," 2,263.48 "
Department of Health,NHS Barnsley CCG,31/07/2016,C&M-GMS Prem Healthcentre Rent,PRC DELEGATED CO-COMMISSIONING,BARNSLEY GP PRACTICE,13583028," 31,827.50 "
Department of Health,NHS Barnsley CCG,31/07/2016,C&M-GMS QOF Aspiration,PRC DELEGATED CO-COMMISSIONING,BARNSLEY GP PRACTICE,13583028," 9,007.62 "
Department of Health,NHS Barnsley CCG,31/07/2016,C&M-GMS Global Sum,PRC DELEGATED CO-COMMISSIONING,BARNSLEY GP PRACTICE,13560205," 70,660.65 "
Department of Health,NHS Barnsley CCG,31/07/2016,C&M-GMS Prem Actual Rent,PRC DELEGATED CO-COMMISSIONING,BARNSLEY GP PRACTICE,13560205," 108,641.25 "
Department of Health,NHS Barnsley CCG,31/07/2016,C&M-GMS Prem Rates,PRC DELEGATED CO-COMMISSIONING,BARNSLEY GP PRACTICE,13560205," 10,138.80 "
Department of Health,NHS Barnsley CCG,31/07/2016,C&M-GMS QOF Aspiration,PRC DELEGATED CO-COMMISSIONING,BARNSLEY GP PRACTICE,13560205," 9,545.99 "
Department of Health,NHS Barnsley CCG,31/07/2016,C&M-PMS Contract Value,PRC DELEGATED CO-COMMISSIONING,BARNSLEY GP PRACTICE,13403243,"-74,620.84 "
Department of Health,NHS Barnsley CCG,31/07/2016,C&M-PMS GP Statutory Levy,PRC DELEGATED CO-COMMISSIONING,BARNSLEY GP PRACTICE,13403243,-389.80 
Department of Health,NHS Barnsley CCG,31/07/2016,C&M-PMS Out of Hours Opt Outs,PRC DELEGATED CO-COMMISSIONING,BARNSLEY GP PRACTICE,13403243,-118.26 
Department of Health,NHS Barnsley CCG,31/07/2016,C&M-PMS Voluntary Levy,PRC DELEGATED CO-COMMISSIONING,BARNSLEY GP PRACTICE,13403243,-68.22 
Department of Health,NHS Barnsley CCG,31/07/2016,ME - PMS TPS Added Years Adj EEs,PRC DELEGATED CO-COMMISSIONING,BARNSLEY GP PRACTICE,13403243,-266.67 
Department of Health,NHS Barnsley CCG,31/07/2016,ME-PMS GP Pension EEs-PMS,PRC DELEGATED CO-COMMISSIONING,BARNSLEY GP PRACTICE,13403243,"-7,526.25 "
Department of Health,NHS Barnsley CCG,31/07/2016,ME-PMS GP Pension ERs Adjs - PMS,PRC DELEGATED CO-COMMISSIONING,BARNSLEY GP PRACTICE,13403243,"-8,186.76 "
Department of Health,NHS Barnsley CCG,31/07/2016,C&M-APMS Prem Rates,PRC DELEGATED CO-COMMISSIONING,BARNSLEY GP PRACTICE,13403244, 951.96 
Department of Health,NHS Barnsley CCG,31/07/2016,C&M-PMS Contract Value,PRC DELEGATED CO-COMMISSIONING,BARNSLEY GP PRACTICE,13403244," 160,276.84 "
Department of Health,NHS Barnsley CCG,31/07/2016,C&M-PMS DES Minor Surgery,PRC DELEGATED CO-COMMISSIONING,BARNSLEY GP PRACTICE,13403244," 16,792.28 "
Department of Health,NHS Barnsley CCG,31/07/2016,C&M-PMS Out of Hours Opt Outs,PRC DELEGATED CO-COMMISSIONING,BARNSLEY GP PRACTICE,13403244,"-4,208.83 "
Department of Health,NHS Barnsley CCG,31/07/2016,C&M-PMS Prem Notional Rent,PRC DELEGATED CO-COMMISSIONING,BARNSLEY GP PRACTICE,13403244," 8,125.00 "
Department of Health,NHS Barnsley CCG,31/07/2016,C&M-PMS QOF Aspiration,PRC DELEGATED CO-COMMISSIONING,BARNSLEY GP PRACTICE,13403244," 9,498.69 "
Department of Health,NHS Barnsley CCG,31/07/2016,C&M-GMS Global Sum,PRC DELEGATED CO-COMMISSIONING,BARNSLEY GP PRACTICE,13560207," 22,542.12 "
Department of Health,NHS Barnsley CCG,31/07/2016,C&M-GMS Prem Notional Rent,PRC DELEGATED CO-COMMISSIONING,BARNSLEY GP PRACTICE,13560207," 1,572.92 "
Department of Health,NHS Barnsley CCG,31/07/2016,C&M-GMS Prem Rates,PRC DELEGATED CO-COMMISSIONING,BARNSLEY GP PRACTICE,13560207, 433.58 
Department of Health,NHS Barnsley CCG,31/07/2016,C&M-GMS QOF Aspiration,PRC DELEGATED CO-COMMISSIONING,BARNSLEY GP PRACTICE,13560207," 2,279.92 "
Department of Health,NHS Barnsley CCG,31/07/2016,C&M-PMS Contract Value,PRC DELEGATED CO-COMMISSIONING,BARNSLEY GP PRACTICE,13403245,"-78,437.25 "
Department of Health,NHS Barnsley CCG,31/07/2016,C&M-PMS GP Statutory Levy,PRC DELEGATED CO-COMMISSIONING,BARNSLEY GP PRACTICE,13403245,-368.97 
Department of Health,NHS Barnsley CCG,31/07/2016,C&M-PMS Out of Hours Opt Outs,PRC DELEGATED CO-COMMISSIONING,BARNSLEY GP PRACTICE,13403245,-76.56 
Department of Health,NHS Barnsley CCG,31/07/2016,C&M-PMS Voluntary Levy,PRC DELEGATED CO-COMMISSIONING,BARNSLEY GP PRACTICE,13403245,-64.57 
Department of Health,NHS Barnsley CCG,31/07/2016,ME-PMS GP Pension EEs-PMS,PRC DELEGATED CO-COMMISSIONING,BARNSLEY GP PRACTICE,13403245,"-5,958.75 "
Department of Health,NHS Barnsley CCG,31/07/2016,ME-PMS GP Pension ERs Adjs - PMS,PRC DELEGATED CO-COMMISSIONING,BARNSLEY GP PRACTICE,13403245,"-6,423.09 "
Department of Health,NHS Barnsley CCG,31/07/2016,C&M-APMS Prem Rates,PRC DELEGATED CO-COMMISSIONING,BARNSLEY GP PRACTICE,13403246," 2,153.67 "
Department of Health,NHS Barnsley CCG,31/07/2016,C&M-PMS Contract Value,PRC DELEGATED CO-COMMISSIONING,BARNSLEY GP PRACTICE,13403246," 167,569.97 "
Department of Health,NHS Barnsley CCG,31/07/2016,C&M-PMS DES Minor Surgery,PRC DELEGATED CO-COMMISSIONING,BARNSLEY GP PRACTICE,13403246," 9,589.50 "
Department of Health,NHS Barnsley CCG,31/07/2016,C&M-PMS Out of Hours Opt Outs,PRC DELEGATED CO-COMMISSIONING,BARNSLEY GP PRACTICE,13403246,"-4,424.42 "
Department of Health,NHS Barnsley CCG,31/07/2016,C&M-PMS Prem Actual Rent,PRC DELEGATED CO-COMMISSIONING,BARNSLEY GP PRACTICE,13403246," 12,708.33 "
Department of Health,NHS Barnsley CCG,31/07/2016,C&M-PMS QOF Aspiration,PRC DELEGATED CO-COMMISSIONING,BARNSLEY GP PRACTICE,13403246," 9,731.41 "
Department of Health,NHS Barnsley CCG,31/07/2016,C&M-PMS Contract Value,PRC DELEGATED CO-COMMISSIONING,BARNSLEY GP PRACTICE,13403247,"-67,727.16 "
Department of Health,NHS Barnsley CCG,31/07/2016,C&M-PMS GP Statutory Levy,PRC DELEGATED CO-COMMISSIONING,BARNSLEY GP PRACTICE,13403247,-349.63 
Department of Health,NHS Barnsley CCG,31/07/2016,C&M-PMS Out of Hours Opt Outs,PRC DELEGATED CO-COMMISSIONING,BARNSLEY GP PRACTICE,13403247,-90.23 
Department of Health,NHS Barnsley CCG,31/07/2016,ME-PMS GP Pension EEs-PMS,PRC DELEGATED CO-COMMISSIONING,BARNSLEY GP PRACTICE,13403247,"-3,701.04 "
Department of Health,NHS Barnsley CCG,31/07/2016,ME-PMS GP Pension ERs Adjs - PMS,PRC DELEGATED CO-COMMISSIONING,BARNSLEY GP PRACTICE,13403247,"-3,963.45 "
Department of Health,NHS Barnsley CCG,31/07/2016,C&M-APMS Prem Rates,PRC DELEGATED CO-COMMISSIONING,BARNSLEY GP PRACTICE,13403248," 1,428.88 "
Department of Health,NHS Barnsley CCG,31/07/2016,C&M-PMS Contract Value,PRC DELEGATED CO-COMMISSIONING,BARNSLEY GP PRACTICE,13403248," 145,129.22 "
Department of Health,NHS Barnsley CCG,31/07/2016,C&M-PMS DES Minor Surgery,PRC DELEGATED CO-COMMISSIONING,BARNSLEY GP PRACTICE,13403248," 2,344.10 "
Department of Health,NHS Barnsley CCG,31/07/2016,C&M-PMS Out of Hours Opt Outs,PRC DELEGATED CO-COMMISSIONING,BARNSLEY GP PRACTICE,13403248,"-3,820.17 "
Department of Health,NHS Barnsley CCG,31/07/2016,C&M-PMS Prem Actual Rent,PRC DELEGATED CO-COMMISSIONING,BARNSLEY GP PRACTICE,13403248," 8,566.67 "
Department of Health,NHS Barnsley CCG,31/07/2016,C&M-PMS QOF Aspiration,PRC DELEGATED CO-COMMISSIONING,BARNSLEY GP PRACTICE,13403248," 7,252.24 "
Department of Health,NHS Barnsley CCG,31/07/2016,C&M-GMS Global Sum,PRC DELEGATED CO-COMMISSIONING,BARNSLEY GP PRACTICE,13560209," 51,632.56 "
Department of Health,NHS Barnsley CCG,31/07/2016,C&M-GMS Prem Healthcentre Rent,PRC DELEGATED CO-COMMISSIONING,BARNSLEY GP PRACTICE,13560209," 20,974.85 "
Department of Health,NHS Barnsley CCG,31/07/2016,C&M-GMS QOF Aspiration,PRC DELEGATED CO-COMMISSIONING,BARNSLEY GP PRACTICE,13560209," 5,719.94 "
Department of Health,NHS Barnsley CCG,31/07/2016,C&M-PMS Contract Value,PRC DELEGATED CO-COMMISSIONING,BARNSLEY GP PRACTICE,13403249,"-84,643.34 "
Department of Health,NHS Barnsley CCG,31/07/2016,C&M-PMS GP Statutory Levy,PRC DELEGATED CO-COMMISSIONING,BARNSLEY GP PRACTICE,13403249,-441.27 
Department of Health,NHS Barnsley CCG,31/07/2016,C&M-PMS Out of Hours Opt Outs,PRC DELEGATED CO-COMMISSIONING,BARNSLEY GP PRACTICE,13403249,-94.51 
Department of Health,NHS Barnsley CCG,31/07/2016,C&M-PMS Voluntary Levy,PRC DELEGATED CO-COMMISSIONING,BARNSLEY GP PRACTICE,13403249,-77.22 
Department of Health,NHS Barnsley CCG,31/07/2016,ME-PMS GP Pension EEs-PMS,PRC DELEGATED CO-COMMISSIONING,BARNSLEY GP PRACTICE,13403249,"-6,753.36 "
Department of Health,NHS Barnsley CCG,31/07/2016,ME-PMS GP Pension ERs Adjs - PMS,PRC DELEGATED CO-COMMISSIONING,BARNSLEY GP PRACTICE,13403249,"-7,565.93 "
Department of Health,NHS Barnsley CCG,31/07/2016,C&M-PMS Contract Value,PRC DELEGATED CO-COMMISSIONING,BARNSLEY GP PRACTICE,13403250," 181,108.76 "
Department of Health,NHS Barnsley CCG,31/07/2016,C&M-PMS DES Minor Surgery,PRC DELEGATED CO-COMMISSIONING,BARNSLEY GP PRACTICE,13403250, 511.44 
Department of Health,NHS Barnsley CCG,31/07/2016,C&M-PMS Out of Hours Opt Outs,PRC DELEGATED CO-COMMISSIONING,BARNSLEY GP PRACTICE,13403250,"-4,774.83 "
Department of Health,NHS Barnsley CCG,31/07/2016,C&M-PMS Prem Actual Rent,PRC DELEGATED CO-COMMISSIONING,BARNSLEY GP PRACTICE,13403250," 53,481.25 "
Department of Health,NHS Barnsley CCG,31/07/2016,C&M-PMS QOF Aspiration,PRC DELEGATED CO-COMMISSIONING,BARNSLEY GP PRACTICE,13403250," 11,102.10 "
Department of Health,NHS Barnsley CCG,31/07/2016,C&M-GMS Global Sum,PRC DELEGATED CO-COMMISSIONING,BARNSLEY GP PRACTICE,13560213," 42,324.78 "
Department of Health,NHS Barnsley CCG,31/07/2016,C&M-GMS Prem Notional Rent,PRC DELEGATED CO-COMMISSIONING,BARNSLEY GP PRACTICE,13560213," 2,541.67 "
Department of Health,NHS Barnsley CCG,31/07/2016,C&M-GMS Prem Rates,PRC DELEGATED CO-COMMISSIONING,BARNSLEY GP PRACTICE,13560213, 973.29 
Department of Health,NHS Barnsley CCG,31/07/2016,C&M-GMS QOF Aspiration,PRC DELEGATED CO-COMMISSIONING,BARNSLEY GP PRACTICE,13560213," 3,306.22 "
Department of Health,NHS Barnsley CCG,31/07/2016,C&M-GMS Global Sum,PRC DELEGATED CO-COMMISSIONING,BARNSLEY GP PRACTICE,13560217," 23,024.54 "
Department of Health,NHS Barnsley CCG,31/07/2016,C&M-GMS Prem Healthcentre Rent,PRC DELEGATED CO-COMMISSIONING,BARNSLEY GP PRACTICE,13560217," 7,768.67 "
Department of Health,NHS Barnsley CCG,31/07/2016,C&M-GMS QOF Aspiration,PRC DELEGATED CO-COMMISSIONING,BARNSLEY GP PRACTICE,13560217," 2,021.85 "
Department of Health,NHS Barnsley CCG,31/07/2016,C&M-PMS Contract Value,PRC DELEGATED CO-COMMISSIONING,BARNSLEY GP PRACTICE,13403681,"-32,829.50 "
Department of Health,NHS Barnsley CCG,31/07/2016,C&M-PMS GP Statutory Levy,PRC DELEGATED CO-COMMISSIONING,BARNSLEY GP PRACTICE,13403681,-141.27 
Department of Health,NHS Barnsley CCG,31/07/2016,C&M-PMS Out of Hours Opt Outs,PRC DELEGATED CO-COMMISSIONING,BARNSLEY GP PRACTICE,13403681,-30.66 
Department of Health,NHS Barnsley CCG,31/07/2016,C&M-PMS Voluntary Levy,PRC DELEGATED CO-COMMISSIONING,BARNSLEY GP PRACTICE,13403681,-24.72 
Department of Health,NHS Barnsley CCG,31/07/2016,ME-PMS GP Pension EEs-PMS,PRC DELEGATED CO-COMMISSIONING,BARNSLEY GP PRACTICE,13403681,"-1,287.50 "
Department of Health,NHS Barnsley CCG,31/07/2016,ME-PMS GP Pension ERs Adjs - PMS,PRC DELEGATED CO-COMMISSIONING,BARNSLEY GP PRACTICE,13403681,"-1,472.90 "
Department of Health,NHS Barnsley CCG,31/07/2016,C&M-PMS Contract Value,PRC DELEGATED CO-COMMISSIONING,BARNSLEY GP PRACTICE,13403682," 69,067.10 "
Department of Health,NHS Barnsley CCG,31/07/2016,C&M-PMS Out of Hours Opt Outs,PRC DELEGATED CO-COMMISSIONING,BARNSLEY GP PRACTICE,13403682,"-1,768.50 "
Department of Health,NHS Barnsley CCG,31/07/2016,C&M-PMS Prem Healthcentre Rent,PRC DELEGATED CO-COMMISSIONING,BARNSLEY GP PRACTICE,13403682," 11,046.27 "
Department of Health,NHS Barnsley CCG,31/07/2016,C&M-PMS QOF Aspiration,PRC DELEGATED CO-COMMISSIONING,BARNSLEY GP PRACTICE,13403682," 4,195.24 "
Department of Health,NHS Barnsley CCG,31/07/2016,C&M-GMS Global Sum,PRC DELEGATED CO-COMMISSIONING,BARNSLEY GP PRACTICE,13560215," 76,942.99 "
Department of Health,NHS Barnsley CCG,31/07/2016,C&M-GMS Prem Healthcentre Rent,PRC DELEGATED CO-COMMISSIONING,BARNSLEY GP PRACTICE,13560215," 27,369.97 "
Department of Health,NHS Barnsley CCG,31/07/2016,C&M-GMS Prem Notional Rent,PRC DELEGATED CO-COMMISSIONING,BARNSLEY GP PRACTICE,13560215," 1,312.50 "
Department of Health,NHS Barnsley CCG,31/07/2016,C&M-GMS Prem Rates,PRC DELEGATED CO-COMMISSIONING,BARNSLEY GP PRACTICE,13560215, 653.40 
Department of Health,NHS Barnsley CCG,31/07/2016,C&M-GMS QOF Aspiration,PRC DELEGATED CO-COMMISSIONING,BARNSLEY GP PRACTICE,13560215," 8,766.44 "
Department of Health,NHS Barnsley CCG,31/07/2016,C&M-PMS Contract Value,PRC DELEGATED CO-COMMISSIONING,BARNSLEY GP PRACTICE,13403251,"-44,156.29 "
Department of Health,NHS Barnsley CCG,31/07/2016,C&M-PMS GP Statutory Levy,PRC DELEGATED CO-COMMISSIONING,BARNSLEY GP PRACTICE,13403251,-209.87 
Department of Health,NHS Barnsley CCG,31/07/2016,C&M-PMS Out of Hours Opt Outs,PRC DELEGATED CO-COMMISSIONING,BARNSLEY GP PRACTICE,13403251,-31.62 
Department of Health,NHS Barnsley CCG,31/07/2016,C&M-PMS Voluntary Levy,PRC DELEGATED CO-COMMISSIONING,BARNSLEY GP PRACTICE,13403251,-36.73 
Department of Health,NHS Barnsley CCG,31/07/2016,ME-PMS GP Pension EEs-PMS,PRC DELEGATED CO-COMMISSIONING,BARNSLEY GP PRACTICE,13403251,-846.79 
Department of Health,NHS Barnsley CCG,31/07/2016,ME-PMS GP Pension ERs Adjs - PMS,PRC DELEGATED CO-COMMISSIONING,BARNSLEY GP PRACTICE,13403251,-896.97 
Department of Health,NHS Barnsley CCG,31/07/2016,C&M-PMS Baseline Adjustment,PRC DELEGATED CO-COMMISSIONING,BARNSLEY GP PRACTICE,13403252," 3,001.58 "
Department of Health,NHS Barnsley CCG,31/07/2016,C&M-PMS Contract Value,PRC DELEGATED CO-COMMISSIONING,BARNSLEY GP PRACTICE,13403252," 88,779.62 "
Department of Health,NHS Barnsley CCG,31/07/2016,C&M-PMS Out of Hours Opt Outs,PRC DELEGATED CO-COMMISSIONING,BARNSLEY GP PRACTICE,13403252,"-2,155.39 "
Department of Health,NHS Barnsley CCG,31/07/2016,C&M-PMS Prem Healthcentre Rent,PRC DELEGATED CO-COMMISSIONING,BARNSLEY GP PRACTICE,13403252," 7,605.40 "
Department of Health,NHS Barnsley CCG,31/07/2016,C&M-PMS Prem Notional Rent,PRC DELEGATED CO-COMMISSIONING,BARNSLEY GP PRACTICE,13403252," 3,583.33 "
Department of Health,NHS Barnsley CCG,31/07/2016,C&M-PMS QOF Aspiration,PRC DELEGATED CO-COMMISSIONING,BARNSLEY GP PRACTICE,13403252," 4,198.69 "
Department of Health,NHS Barnsley CCG,31/07/2016,C&M-PMS Contract Value,PRC DELEGATED CO-COMMISSIONING,BARNSLEY GP PRACTICE,13403679,"-22,994.75 "
Department of Health,NHS Barnsley CCG,31/07/2016,C&M-PMS Out of Hours Opt Outs,PRC DELEGATED CO-COMMISSIONING,BARNSLEY GP PRACTICE,13403679,-26.98 
Department of Health,NHS Barnsley CCG,31/07/2016,ME-PMS GP Pension EEs-PMS,PRC DELEGATED CO-COMMISSIONING,BARNSLEY GP PRACTICE,13403679,"-1,052.03 "
Department of Health,NHS Barnsley CCG,31/07/2016,ME-PMS GP Pension ERs Adjs - PMS,PRC DELEGATED CO-COMMISSIONING,BARNSLEY GP PRACTICE,13403679,"-1,395.75 "
Department of Health,NHS Barnsley CCG,31/07/2016,C&M-APMS Prem Rates,PRC DELEGATED CO-COMMISSIONING,BARNSLEY GP PRACTICE,13403680, 762.30 
Department of Health,NHS Barnsley CCG,31/07/2016,C&M-PMS Baseline Adjustment,PRC DELEGATED CO-COMMISSIONING,BARNSLEY GP PRACTICE,13403680," 1,386.00 "
Department of Health,NHS Barnsley CCG,31/07/2016,C&M-PMS Contract Value,PRC DELEGATED CO-COMMISSIONING,BARNSLEY GP PRACTICE,13403680," 46,958.82 "
Department of Health,NHS Barnsley CCG,31/07/2016,C&M-PMS Dispensing Quality Sch,PRC DELEGATED CO-COMMISSIONING,BARNSLEY GP PRACTICE,13403680," 3,818.40 "
Department of Health,NHS Barnsley CCG,31/07/2016,C&M-PMS Out of Hours Opt Outs,PRC DELEGATED CO-COMMISSIONING,BARNSLEY GP PRACTICE,13403680,"-1,151.58 "
Department of Health,NHS Barnsley CCG,31/07/2016,C&M-PMS Prem Notional Rent,PRC DELEGATED CO-COMMISSIONING,BARNSLEY GP PRACTICE,13403680," 4,145.83 "
Department of Health,NHS Barnsley CCG,31/07/2016,C&M-PMS QOF Aspiration,PRC DELEGATED CO-COMMISSIONING,BARNSLEY GP PRACTICE,13403680," 1,890.25 "
Department of Health,NHS Barnsley CCG,31/07/2016,C&M-PMS Cost of Drugs -Dispensing,LOCAL ENHANCED SERVICES,BARNSLEY GP PRACTICE,13565361," 26,481.81 "
Department of Health,NHS Barnsley CCG,31/07/2016,C&M-PMS Prof fees Dispensing,PRC DELEGATED CO-COMMISSIONING,BARNSLEY GP PRACTICE,13565361," 4,346.69 "
Department of Health,NHS Barnsley CCG,31/07/2016,C&M-PMS Prsc Chrgs Cll&Rmttd by GPs,LOCAL ENHANCED SERVICES,BARNSLEY GP PRACTICE,13565361," 1,167.60 "
Department of Health,NHS Barnsley CCG,31/07/2016,C&M-APMS Contract Value,PRC DELEGATED CO-COMMISSIONING,BARNSLEY GP PRACTICE,13420147," 17,005.38 "
Department of Health,NHS Barnsley CCG,31/07/2016,C&M-APMS OOH Opt Outs,PRC DELEGATED CO-COMMISSIONING,BARNSLEY GP PRACTICE,13420147,-828.26 
Department of Health,NHS Barnsley CCG,31/07/2016,C&M-APMS Prem Other,PRC DELEGATED CO-COMMISSIONING,BARNSLEY GP PRACTICE,13420147," 4,744.50 "
Department of Health,NHS Barnsley CCG,31/07/2016,C&M-PMS Contract Value,PRC DELEGATED CO-COMMISSIONING,BARNSLEY GP PRACTICE,13420147," 15,436.58 "
Department of Health,NHS Barnsley CCG,31/07/2016,C&M-PMS Prem Healthcentre Rent,PRC DELEGATED CO-COMMISSIONING,BARNSLEY GP PRACTICE,13420147, 49.65 
Department of Health,NHS Barnsley CCG,31/07/2016,C&M-PMS QOF Aspiration,PRC DELEGATED CO-COMMISSIONING,BARNSLEY GP PRACTICE,13420147," 1,422.76 "
Department of Health,NHS Barnsley CCG,31/07/2016,C&M-PMS Contract Value,PRC DELEGATED CO-COMMISSIONING,BARNSLEY GP PRACTICE,13403683,"-32,412.67 "
Department of Health,NHS Barnsley CCG,31/07/2016,C&M-PMS GP Statutory Levy,PRC DELEGATED CO-COMMISSIONING,BARNSLEY GP PRACTICE,13403683,-147.07 
Department of Health,NHS Barnsley CCG,31/07/2016,C&M-PMS Out of Hours Opt Outs,PRC DELEGATED CO-COMMISSIONING,BARNSLEY GP PRACTICE,13403683,-68.42 
Department of Health,NHS Barnsley CCG,31/07/2016,C&M-PMS Voluntary Levy,PRC DELEGATED CO-COMMISSIONING,BARNSLEY GP PRACTICE,13403683,-25.74 
Department of Health,NHS Barnsley CCG,31/07/2016,ME-PMS GP Pension EEs-PMS,PRC DELEGATED CO-COMMISSIONING,BARNSLEY GP PRACTICE,13403683,"-1,426.25 "
Department of Health,NHS Barnsley CCG,31/07/2016,ME-PMS GP Pension ERs Adjs - PMS,PRC DELEGATED CO-COMMISSIONING,BARNSLEY GP PRACTICE,13403683,"-1,561.08 "
Department of Health,NHS Barnsley CCG,31/07/2016,C&M-PMS Baseline Adjustment,PRC DELEGATED CO-COMMISSIONING,BARNSLEY GP PRACTICE,13403684, 407.50 
Department of Health,NHS Barnsley CCG,31/07/2016,C&M-PMS Contract Value,PRC DELEGATED CO-COMMISSIONING,BARNSLEY GP PRACTICE,13403684," 68,449.42 "
Department of Health,NHS Barnsley CCG,31/07/2016,C&M-PMS Out of Hours Opt Outs,PRC DELEGATED CO-COMMISSIONING,BARNSLEY GP PRACTICE,13403684,"-1,701.08 "
Department of Health,NHS Barnsley CCG,31/07/2016,C&M-PMS Prem Notional Rent,PRC DELEGATED CO-COMMISSIONING,BARNSLEY GP PRACTICE,13403684," 3,041.67 "
Department of Health,NHS Barnsley CCG,31/07/2016,C&M-PMS QOF Aspiration,PRC DELEGATED CO-COMMISSIONING,BARNSLEY GP PRACTICE,13403684," 2,458.56 "
Department of Health,NHS Barnsley CCG,31/07/2016,C&M-GMS Global Sum,PRC DELEGATED CO-COMMISSIONING,BARNSLEY GP PRACTICE,13563843," 56,714.36 "
Department of Health,NHS Barnsley CCG,31/07/2016,C&M-GMS Prem Actual Rent,PRC DELEGATED CO-COMMISSIONING,BARNSLEY GP PRACTICE,13563843," 4,750.00 "
Department of Health,NHS Barnsley CCG,31/07/2016,C&M-GMS QOF Aspiration,PRC DELEGATED CO-COMMISSIONING,BARNSLEY GP PRACTICE,13563843," 7,060.35 "
Department of Health,NHS Barnsley CCG,31/07/2016,C&M-PMS Contract Value,PRC DELEGATED CO-COMMISSIONING,BARNSLEY GP PRACTICE,13403253,"-60,734.00 "
Department of Health,NHS Barnsley CCG,31/07/2016,C&M-PMS GP Statutory Levy,PRC DELEGATED CO-COMMISSIONING,BARNSLEY GP PRACTICE,13403253,-290.03 
Department of Health,NHS Barnsley CCG,31/07/2016,C&M-PMS Out of Hours Opt Outs,PRC DELEGATED CO-COMMISSIONING,BARNSLEY GP PRACTICE,13403253,-58.01 
Department of Health,NHS Barnsley CCG,31/07/2016,C&M-PMS Prem Healthcentre Rent,PRC DELEGATED CO-COMMISSIONING,BARNSLEY GP PRACTICE,13403253,-3.51 
Department of Health,NHS Barnsley CCG,31/07/2016,C&M-PMS Voluntary Levy,PRC DELEGATED CO-COMMISSIONING,BARNSLEY GP PRACTICE,13403253,-50.76 
Department of Health,NHS Barnsley CCG,31/07/2016,ME-PMS GP Pension EEs-PMS,PRC DELEGATED CO-COMMISSIONING,BARNSLEY GP PRACTICE,13403253,"-1,615.80 "
Department of Health,NHS Barnsley CCG,31/07/2016,ME-PMS GP Pension ERs Adjs - PMS,PRC DELEGATED CO-COMMISSIONING,BARNSLEY GP PRACTICE,13403253,"-1,967.45 "
Department of Health,NHS Barnsley CCG,31/07/2016,C&M-PMS Contract Value,PRC DELEGATED CO-COMMISSIONING,BARNSLEY GP PRACTICE,13403254," 127,996.10 "
Department of Health,NHS Barnsley CCG,31/07/2016,C&M-PMS Out of Hours Opt Outs,PRC DELEGATED CO-COMMISSIONING,BARNSLEY GP PRACTICE,13403254,"-3,396.92 "
Department of Health,NHS Barnsley CCG,31/07/2016,C&M-PMS Prem Actual Rent,PRC DELEGATED CO-COMMISSIONING,BARNSLEY GP PRACTICE,13403254, 336.75 
Department of Health,NHS Barnsley CCG,31/07/2016,C&M-PMS Prem Healthcentre Rent,PRC DELEGATED CO-COMMISSIONING,BARNSLEY GP PRACTICE,13403254," 15,940.23 "
Department of Health,NHS Barnsley CCG,31/07/2016,C&M-PMS QOF Aspiration,PRC DELEGATED CO-COMMISSIONING,BARNSLEY GP PRACTICE,13403254," 6,208.13 "
Department of Health,NHS Barnsley CCG,31/07/2016,C&M-PMS Contract Value,PRC DELEGATED CO-COMMISSIONING,BARNSLEY GP PRACTICE,13403675,"-33,067.57 "
Department of Health,NHS Barnsley CCG,31/07/2016,C&M-PMS GP Statutory Levy,PRC DELEGATED CO-COMMISSIONING,BARNSLEY GP PRACTICE,13403675,-156.23 
Department of Health,NHS Barnsley CCG,31/07/2016,C&M-PMS Out of Hours Opt Outs,PRC DELEGATED CO-COMMISSIONING,BARNSLEY GP PRACTICE,13403675,-27.15 
Department of Health,NHS Barnsley CCG,31/07/2016,C&M-PMS Voluntary Levy,PRC DELEGATED CO-COMMISSIONING,BARNSLEY GP PRACTICE,13403675,-27.34 
Department of Health,NHS Barnsley CCG,31/07/2016,ME-PMS GP Pension EEs-PMS,PRC DELEGATED CO-COMMISSIONING,BARNSLEY GP PRACTICE,13403675,-520.83 
Department of Health,NHS Barnsley CCG,31/07/2016,ME-PMS GP Pension ERs Adjs - PMS,PRC DELEGATED CO-COMMISSIONING,BARNSLEY GP PRACTICE,13403675,-595.83 
Department of Health,NHS Barnsley CCG,31/07/2016,C&M-APMS Prem Rates,PRC DELEGATED CO-COMMISSIONING,BARNSLEY GP PRACTICE,13403676," 3,064.83 "
Department of Health,NHS Barnsley CCG,31/07/2016,C&M-PMS Contract Value,PRC DELEGATED CO-COMMISSIONING,BARNSLEY GP PRACTICE,13403676," 70,257.03 "
Department of Health,NHS Barnsley CCG,31/07/2016,C&M-PMS Out of Hours Opt Outs,PRC DELEGATED CO-COMMISSIONING,BARNSLEY GP PRACTICE,13403676,"-1,850.68 "
Department of Health,NHS Barnsley CCG,31/07/2016,C&M-PMS Prem Healthcentre Rent,PRC DELEGATED CO-COMMISSIONING,BARNSLEY GP PRACTICE,13403676," 1,292.86 "
Department of Health,NHS Barnsley CCG,31/07/2016,C&M-PMS Prem Notional Rent,PRC DELEGATED CO-COMMISSIONING,BARNSLEY GP PRACTICE,13403676," 28,675.00 "
Department of Health,NHS Barnsley CCG,31/07/2016,C&M-PMS Prem Water Rates,PRC DELEGATED CO-COMMISSIONING,BARNSLEY GP PRACTICE,13403676, 272.64 
Department of Health,NHS Barnsley CCG,31/07/2016,C&M-PMS QOF Aspiration,PRC DELEGATED CO-COMMISSIONING,BARNSLEY GP PRACTICE,13403676," 4,059.35 "
Department of Health,NHS Barnsley CCG,31/07/2016,C&M-APMS Contract Value,PRC DELEGATED CO-COMMISSIONING,BARNSLEY HEALTHCARE FEDERATION,13403257," 24,181.58 "
Department of Health,NHS Barnsley CCG,31/07/2016,C&M-APMS OOH Opt Outs,PRC DELEGATED CO-COMMISSIONING,BARNSLEY HEALTHCARE FEDERATION,13403257, 2.84 
Department of Health,NHS Barnsley CCG,31/07/2016,C&M-APMS Prem Actual Rent,PRC DELEGATED CO-COMMISSIONING,BARNSLEY HEALTHCARE FEDERATION,13403257," 1,429.55 "
Department of Health,NHS Barnsley CCG,31/07/2016,C&M-APMS Prem Rates,PRC DELEGATED CO-COMMISSIONING,BARNSLEY HEALTHCARE FEDERATION,13403257, 377.52 
Department of Health,NHS Barnsley CCG,31/07/2016,C&M-APMS PCO Other,PRC DELEGATED CO-COMMISSIONING,BARNSLEY HEALTHCARE FEDERATION,13443714," 40,000.00 "
Department of Health,NHS Barnsley CCG,31/07/2016,C&M-APMS Contract Value,PRC DELEGATED CO-COMMISSIONING,BARNSLEY HEALTHCARE FEDERATION,13531405," 123,412.34 "
Department of Health,NHS Barnsley CCG,31/07/2016,C&M-APMS OOH Opt Outs,PRC DELEGATED CO-COMMISSIONING,BARNSLEY HEALTHCARE FEDERATION,13531405,"-6,108.79 "
Department of Health,NHS Barnsley CCG,31/07/2016,Clinical&Medical-Voluntary Sector,HOSPICES,BARNSLEY HOSPICE,13304805," 397,271.52 "
Department of Health,NHS Barnsley CCG,30/06/2016,Hcare Srv Rec Fdtn Trust-CQUIN,ACUTE COMMISSIONING,BARNSLEY HOSPITAL NHS FOUNDATION TRUST,13226307," 251,865.00 "
Department of Health,NHS Barnsley CCG,30/06/2016,Hcare Srv Rec Fdtn Trust-Contract Baseline,ACUTE COMMISSIONING,BARNSLEY HOSPITAL NHS FOUNDATION TRUST,13226307," 10,531,214.00 "
Department of Health,NHS Barnsley CCG,31/07/2016,Clinical&Medical-Othe Public Sector,CHC AD JNT FUND PERS HLTH BUD,BARNSLEY METROPOLITAN BOROUGH COUNCIL,13373364," 30,167.09 "
Department of Health,NHS Barnsley CCG,31/07/2016,Clinical&Medical-Commercial Sector,ACUTE COMMISSIONING,BMI HEALTHCARE COLLECTIONS,13304825," 37,156.35 "
Department of Health,NHS Barnsley CCG,31/07/2016,Clinical&Medical-Commercial Sector,ACUTE COMMISSIONING,BMI HEALTHCARE COLLECTIONS,13304830," 26,046.56 "
Department of Health,NHS Barnsley CCG,31/07/2016,Clinical&Medical-Commercial Sector,ACUTE COMMISSIONING,BMI HEALTHCARE COLLECTIONS,13593148," 37,156.35 "
Department of Health,NHS Barnsley CCG,31/07/2016,Clinical&Medical-Commercial Sector,OUT OF HOURS,CARE UK CLINICAL SERVICES LTD,13304867," 161,281.08 "
Department of Health,NHS Barnsley CCG,31/07/2016,Clinical&Medical-Commercial Sector,ACUTE COMMISSIONING,CARE UK CLINICAL SERVICES LTD,13388629," 27,286.07 "
Department of Health,NHS Barnsley CCG,31/07/2016,Clinical&Medical-Commercial Sector,ACUTE COMMISSIONING,CARE UK CLINICAL SERVICES LTD,13484670,"-25,055.79 "
Department of Health,NHS Barnsley CCG,31/07/2016,Clinical&Medical-Commercial Sector,ACUTE COMMISSIONING,CLAREMONT HOSPITAL,13427964," 47,693.00 "
Department of Health,NHS Barnsley CCG,31/07/2016,Clinical&Medical-Commercial Sector,ACUTE COMMISSIONING,CLAREMONT HOSPITAL,13592377," 37,135.00 "
Department of Health,NHS Barnsley CCG,31/07/2016,Clinical&Medical-Commercial Sector,ACUTE COMMISSIONING,CLAREMONT HOSPITAL,13592489," 41,129.00 "
Department of Health,NHS Barnsley CCG,31/07/2016,Cont Care-Physical Disab (<65),CHC ADULT FULLY FUNDED,DANSHELL HEALTHCARE LTD,13516972," 33,450.00 "
Department of Health,NHS Barnsley CCG,31/07/2016,Cont Care-Learning Disab(<65),CHC ADULT JOINT FUNDED,DANSHELL HEALTHCARE LTD,13634290," 34,565.00 "
Department of Health,NHS Barnsley CCG,30/06/2016,Hcare Srv Rec Fdtn Trust-CQUIN,ACUTE COMMISSIONING,DONCASTER AND BASSETLAW HOSPITALS NHS FOUNDATION TRUST,13226100," 6,490.00 "
Department of Health,NHS Barnsley CCG,30/06/2016,Hcare Srv Rec Fdtn Trust-Contract Baseline,ACUTE COMMISSIONING,DONCASTER AND BASSETLAW HOSPITALS NHS FOUNDATION TRUST,13226100," 558,167.00 "
Department of Health,NHS Barnsley CCG,31/07/2016,Income tax <1Yr,BALANCE SHEET,HMRC,13439772," 44,147.59 "
Department of Health,NHS Barnsley CCG,31/07/2016,Income tax <1Yr-Student Loans,BALANCE SHEET,HMRC,13439772, 614.00 
Department of Health,NHS Barnsley CCG,31/07/2016,National Insurance < 1 yr-NI- ERS,BALANCE SHEET,HMRC,13439772," 29,968.34 "
Department of Health,NHS Barnsley CCG,31/07/2016,National Insurance < 1 yr-NI-EES,BALANCE SHEET,HMRC,13439772," 21,103.36 "
Department of Health,NHS Barnsley CCG,31/07/2016,Statutory Mat Pay < 1 yr,BALANCE SHEET,HMRC,13439772,"-4,695.92 "
Department of Health,NHS Barnsley CCG,31/07/2016,External Data Contracts,COMMISSIONING SCHEMES,KIER BUSINESS SERVICES LTD,13388624," 73,794.00 "
Department of Health,NHS Barnsley CCG,31/07/2016,External Data Contracts,CORPORATE COSTS & SERVICES,KIER BUSINESS SERVICES LTD,13388624," 11,953.00 "
Department of Health,NHS Barnsley CCG,30/06/2016,Hcare Srv Rec NHS Trust-CQUIN,ACUTE COMMISSIONING,LEEDS TEACHING HOSPITALS NHS TRUST,13192727," 5,746.35 "
Department of Health,NHS Barnsley CCG,30/06/2016,Hcare Srv Rec NHS Trust-Contract Baseline,ACUTE COMMISSIONING,LEEDS TEACHING HOSPITALS NHS TRUST,13192727," 69,626.95 "
Department of Health,NHS Barnsley CCG,30/06/2016,Hcare Srv Rec NHS Trust-CQUIN,ACUTE COMMISSIONING,MID YORKSHIRE HOSPITALS NHS TRUST,13226274," 2,195.00 "
Department of Health,NHS Barnsley CCG,30/06/2016,Hcare Srv Rec NHS Trust-Contract Baseline,ACUTE COMMISSIONING,MID YORKSHIRE HOSPITALS NHS TRUST,13226274," 205,233.00 "
Department of Health,NHS Barnsley CCG,31/07/2016,Clinical&Medical-Commercial Sector,ACUTE COMMISSIONING,ONEHEALTH GROUP,13537311," 102,782.68 "
Department of Health,NHS Barnsley CCG,31/07/2016,Clinical&Medical-Commercial Sector,ACUTE COMMISSIONING,PAIN MANAGEMENT SOLUTIONS LTD,13517137," 29,134.67 "
Department of Health,NHS Barnsley CCG,31/07/2016,Hcare Srv Rec Fdtn Trust-Contract Baseline,MENTAL HEALTH CONTRACTS,ROTHERHAM DONCASTER & SOUTH HUMBER MENTAL HEALTH NHS FOUNDATION TRUST,13304741," 49,161.69 "
Department of Health,NHS Barnsley CCG,31/07/2016,Hcare Srv Rec Fdtn Trust-CQUIN,MENTAL HEALTH CONTRACTS,ROTHERHAM DONCASTER & SOUTH HUMBER MENTAL HEALTH NHS FOUNDATION TRUST,13388671, 674.86 
Department of Health,NHS Barnsley CCG,31/07/2016,Hcare Srv Rec Fdtn Trust-Contract Baseline,MENTAL HEALTH CONTRACTS,ROTHERHAM DONCASTER & SOUTH HUMBER MENTAL HEALTH NHS FOUNDATION TRUST,13388671," 49,161.69 "
Department of Health,NHS Barnsley CCG,31/07/2016,Hcare Srv Rec Fdtn Trust-CQUIN,COMMUNITY SERVICES,ROTHERHAM NHS FOUNDATION TRUST,13443753, 503.79 
Department of Health,NHS Barnsley CCG,31/07/2016,Hcare Srv Rec Fdtn Trust-Contract Baseline,COMMUNITY SERVICES,ROTHERHAM NHS FOUNDATION TRUST,13443753," 40,303.50 "
Department of Health,NHS Barnsley CCG,31/07/2016,Hcare Srv Rec Fdtn Trust-CQUIN,ACUTE COMMISSIONING,ROTHERHAM NHS FOUNDATION TRUST,13443761," 11,267.42 "
Department of Health,NHS Barnsley CCG,31/07/2016,Hcare Srv Rec Fdtn Trust-Contract Baseline,ACUTE COMMISSIONING,ROTHERHAM NHS FOUNDATION TRUST,13443761," 1,057,394.58 "
Department of Health,NHS Barnsley CCG,31/07/2016,Hcare Srv Rec Fdtn Trust-CQUIN,ACUTE COMMISSIONING,SHEFFIELD CHILDRENS NHS FOUNDATION TRUST,13443969," 2,045.48 "
Department of Health,NHS Barnsley CCG,31/07/2016,Hcare Srv Rec Fdtn Trust-Contract Baseline,ACUTE COMMISSIONING,SHEFFIELD CHILDRENS NHS FOUNDATION TRUST,13443969," 174,355.39 "
Department of Health,NHS Barnsley CCG,31/07/2016,Hcare Srv Rec Fdtn Trust-Contract Baseline,ACUTE COMMISSIONING,SHEFFIELD TEACHING HOSPITALS NHS FOUNDATION TRUST,13388637," 2,121,000.00 "
Department of Health,NHS Barnsley CCG,31/07/2016,Hcare Srv Rec Fdtn Trust-Contract Baseline,ACUTE COMMISSIONING,SHEFFIELD TEACHING HOSPITALS NHS FOUNDATION TRUST,13388639," 179,000.00 "
Department of Health,NHS Barnsley CCG,31/07/2016,Hcare Srv Rec Fdtn Trust-CQUIN,COMMUNITY SERVICES,SOUTH WEST YORKSHIRE PARTNERSHIP NHS FOUNDATION TRUST,13388652," 36,125.00 "
Department of Health,NHS Barnsley CCG,31/07/2016,Hcare Srv Rec Fdtn Trust-CQUIN,LEARNING DIFFICULTIES,SOUTH WEST YORKSHIRE PARTNERSHIP NHS FOUNDATION TRUST,13388652," 2,010.00 "
Department of Health,NHS Barnsley CCG,31/07/2016,Hcare Srv Rec Fdtn Trust-CQUIN,MENTAL HEALTH SERVICES - ADULTS,SOUTH WEST YORKSHIRE PARTNERSHIP NHS FOUNDATION TRUST,13388652," 24,553.00 "
Department of Health,NHS Barnsley CCG,31/07/2016,Hcare Srv Rec Fdtn Trust-CQUIN,MENTAL HEALTH SERVICES - OLDER PEOPLE,SOUTH WEST YORKSHIRE PARTNERSHIP NHS FOUNDATION TRUST,13388652," 4,322.00 "
Department of Health,NHS Barnsley CCG,31/07/2016,Hcare Srv Rec Fdtn Trust-Contract Baseline,COMMUNITY SERVICES,SOUTH WEST YORKSHIRE PARTNERSHIP NHS FOUNDATION TRUST,13388652," 2,901,982.00 "
Department of Health,NHS Barnsley CCG,31/07/2016,Hcare Srv Rec Fdtn Trust-Contract Baseline,LEARNING DIFFICULTIES,SOUTH WEST YORKSHIRE PARTNERSHIP NHS FOUNDATION TRUST,13388652," 160,876.00 "
Department of Health,NHS Barnsley CCG,31/07/2016,Hcare Srv Rec Fdtn Trust-Contract Baseline,MENTAL HEALTH SERVICES - ADULTS,SOUTH WEST YORKSHIRE PARTNERSHIP NHS FOUNDATION TRUST,13388652," 2,007,084.00 "
Department of Health,NHS Barnsley CCG,31/07/2016,Hcare Srv Rec Fdtn Trust-Contract Baseline,MENTAL HEALTH SERVICES - OLDER PEOPLE,SOUTH WEST YORKSHIRE PARTNERSHIP NHS FOUNDATION TRUST,13388652," 345,763.00 "
Department of Health,NHS Barnsley CCG,31/07/2016,Clinical&Medical-Serv Recd-F Trsts,PROGRAMME PROJECTS,SOUTH WEST YORKSHIRE PARTNERSHIP NHS FOUNDATION TRUST,13427957," 48,277.25 "
Department of Health,NHS Barnsley CCG,31/07/2016,Hcare Srv Rec NHS Trust-Contract Baseline,NHS 111,YORKSHIRE AMBULANCE SERVICE NHS TRUST,13388631," 42,079.00 "
Department of Health,NHS Barnsley CCG,31/07/2016,Hcare Srv Rec NHS Trust-Contract Baseline,AMBULANCE SERVICES,YORKSHIRE AMBULANCE SERVICE NHS TRUST,13388635," 582,050.00 "
Department of Health,NHS Barnsley CCG,31/07/2016,Hcare Srv Rec NHS Trust-Non Contract,WINTER PRESSURES,YORKSHIRE AMBULANCE SERVICE NHS TRUST,13388663," 35,333.33 "
Department of Health,NHS Barnsley CCG,31/07/2016,Hcare Srv Rec NHS Trust-Contract Baseline,PATIENT TRANSPORT,YORKSHIRE AMBULANCE SERVICE NHS TRUST,13427798," 179,464.00 "
Department of Health,NHS Barnsley CCG,31/07/2016,Hcare Srv Rec NHS Trust-Non Contract,WINTER PRESSURES,YORKSHIRE AMBULANCE SERVICE NHS TRUST,13443823," 105,999.99 "
,,,,,,," 25,995,354.14 "
